[Event "BM10, BM12, BM14, BM16 ir BM18 èempionat"]
[Site "Vilnius"]
[Date "2021.06.06"]
[Round "8.1"]
[White "Aleknavicius, Andrius"]
[Black "Bagvilas, Lukas"]
[Result "1-0"]
[WhiteElo "1990"]
[BlackElo "2053"]
[PlyCount "31"]
[EventDate "2021.??.??"]
[TimeControl "90+30"]
[WhiteClock "1:27:47"]
[BlackClock "1:12:27"]

1. d4 {[%emt 0:00:02]} d5 {[%emt 0:00:06]} 2. Bf4 {[%emt 0:00:05]} Nf6 {[%emt
0:00:06]} 3. e3 {[%emt 0:00:08]} e6 {[%emt 0:00:07]} 4. Nf3 {[%emt 0:00:38]} c5
{[%emt 0:00:08]} 5. c3 {[%emt 0:00:06]} Bd6 {[%emt 0:00:11]} 6. Bg3 {[%emt 0:
00:25]} Nc6 {[%emt 0:00:44]} 7. Nbd2 {[%emt 0:00:15]} O-O {[%emt 0:00:08]} 8.
Bd3 {[%emt 0:00:12]} b6 {[%emt 0:00:49]} 9. e4 {[%emt 0:00:43]} dxe4 {[%emt 0:
00:18]} 10. Nxe4 {[%emt 0:00:05]} Nxe4 {[%emt 0:00:14]} 11. Bxe4 {[%emt 0:00:
02]} Bb7 {[%emt 0:00:47]} 12. Qa4 {[%emt 0:01:54]} Rc8 {[%emt 0:09:52]} 13.
dxc5 {[%emt 0:03:19]} Bxc5 {[%emt 0:01:25]} 14. Rd1 {[%emt 0:00:33]} Qe8 {
[%emt 0:05:12]} 15. Bxh7+ {[%emt 0:02:05]} Kxh7 {[%emt 0:05:25]} 16. Qh4+ {
[%emt 0:00:12]} 1-0

[Event "BM10, BM12, BM14, BM16 ir BM18 èempionat"]
[Site "Vilnius"]
[Date "2021.06.06"]
[Round "8.2"]
[White "Mickus, Benas"]
[Black "Butvilas, Aistis"]
[Result "1-0"]
[WhiteElo "1974"]
[BlackElo "2115"]
[PlyCount "108"]
[EventDate "2021.??.??"]
[TimeControl "90+30"]
[WhiteClock "0:14:54"]
[BlackClock "0:49:59"]

1. a3 {[%emt 0:00:22]} Nf6 {[%emt 0:02:14]} 2. d4 {[%emt 0:00:15]} d6 {[%emt 0:
03:09]} 3. Nf3 {[%emt 0:02:59]} Bg4 {[%emt 0:00:59]} 4. e3 {[%emt 0:00:35]}
Nbd7 {[%emt 0:00:23]} 5. Be2 {[%emt 0:00:13]} c6 {[%emt 0:00:37]} 6. c4 {[%emt
0:00:54]} e5 {[%emt 0:00:32]} 7. Nc3 {[%emt 0:00:21]} Qc7 {[%emt 0:01:15]} 8.
Qc2 {[%emt 0:02:09]} Be7 {[%emt 0:00:27]} 9. b4 {[%emt 0:02:01]} O-O {[%emt 0:
00:28]} 10. Bb2 {[%emt 0:02:10]} Rfe8 {[%emt 0:01:13]} 11. O-O {[%emt 0:02:27]}
Bh5 {[%emt 0:00:57]} 12. dxe5 {[%emt 0:07:14]} dxe5 {[%emt 0:00:56]} 13. Rfd1 {
[%emt 0:06:24]} a5 {[%emt 0:00:51]} 14. b5 {[%emt 0:05:33]} Nc5 {[%emt 0:01:21]
} 15. Nh4 {[%emt 0:08:17]} Bxe2 {[%emt 0:03:10]} 16. Qxe2 {[%emt 0:03:00]} a4 {
[%emt 0:00:19]} 17. Nf3 {[%emt 0:02:52]} Bf8 {[%emt 0:00:38]} 18. Na2 {[%emt 0:
08:18]} Nfd7 {[%emt 0:02:17]} 19. Nb4 {[%emt 0:01:50]} Nb3 {[%emt 0:00:55]} 20.
Rab1 {[%emt 0:00:07]} f6 {[%emt 0:01:39]} 21. Bc3 {[%emt 0:02:31]} Nb6 {[%emt
0:01:23]} 22. bxc6 {[%emt 0:08:42]} bxc6 {[%emt 0:01:00]} 23. Nd2 {[%emt 0:00:
12]} Nxd2 {[%emt 0:04:03]} 24. Bxd2 {[%emt 0:02:04]} Rec8 {[%emt 0:00:48]} 25.
c5 {[%emt 0:06:10]} Nd5 {[%emt 0:03:30]} 26. e4 {[%emt 0:01:30]} Nxb4 {[%emt 0:
00:51]} 27. Rxb4 {[%emt 0:00:12]} Qf7 {[%emt 0:00:10]} 28. Be3 {[%emt 0:00:17]}
Rd8 {[%emt 0:03:35]} 29. h3 {[%emt 0:02:03]} Rxd1+ {[%emt 0:01:47]} 30. Qxd1 {
[%emt 0:00:11]} Qa7 {[%emt 0:00:20]} 31. Rb6 {[%emt 0:00:32]} Qc7 {[%emt 0:01:
40]} 32. Qb1 {[%emt 0:00:54]} Qd7 {[%emt 0:09:24]} 33. Qa2+ {[%emt 0:04:14]}
Kh8 {[%emt 0:00:24]} 34. Qc4 {[%emt 0:00:20]} h6 {[%emt 0:01:08]} 35. Kh2 {
[%emt 0:01:11]} Kh7 {[%emt 0:02:16]} 36. Ra6 {[%emt 0:02:10]} Qb7 {[%emt 0:00:
10]} 37. Rxa4 {[%emt 0:01:30]} Rd8 {[%emt 0:00:22]} 38. Rb4 {[%emt 0:00:15]}
Qc7 {[%emt 0:00:45]} 39. Rb6 {[%emt 0:00:25]} Ra8 {[%emt 0:01:12]} 40. Qb3 {
[%emt 0:01:29]} Ra5 {[%emt 0:00:17]} 41. Rb7 {[%emt 0:02:26]} Qd8 {[%emt 0:00:
13]} 42. Qb6 {[%emt 0:01:46]} Qxb6 {[%emt 0:00:28]} 43. cxb6 {[%emt 0:00:03]}
Rxa3 {[%emt 0:02:36]} 44. Rd7 {[%emt 0:00:16]} Rb3 {[%emt 0:01:22]} 45. b7 {
[%emt 0:00:06]} c5 {[%emt 0:01:12]} 46. Rd8 {[%emt 0:00:37]} Rxb7 {[%emt 0:00:
12]} 47. Rxf8 {[%emt 0:00:05]} Rc7 {[%emt 0:00:09]} 48. Rd8 {[%emt 0:00:35]} c4
{[%emt 0:00:51]} 49. Rd5 {[%emt 0:00:48]} Kg6 {[%emt 0:00:25]} 50. Rc5 {[%emt
0:00:07]} Rxc5 {[%emt 0:00:01]} 51. Bxc5 {[%emt 0:00:07]} f5 {[%emt 0:00:06]}
52. exf5+ {[%emt 0:00:12]} Kxf5 {[%emt 0:00:02]} 53. Bb4 {[%emt 0:00:12]} Ke4 {
[%emt 0:00:11]} 54. Bc3 {[%emt 0:00:13]} Kd5 {[%emt 0:01:03]} 1-0

[Event "BM10, BM12, BM14, BM16 ir BM18 èempionat"]
[Site "Vilnius"]
[Date "2021.06.06"]
[Round "8.3"]
[White "Boyajyan, David"]
[Black "Jablokov, Dmitrij"]
[Result "0-1"]
[WhiteElo "1900"]
[BlackElo "1964"]
[PlyCount "118"]
[EventDate "2021.??.??"]
[TimeControl "90+30"]
[WhiteClock "0:04:48"]
[BlackClock "0:35:33"]

1. d4 {[%emt 0:00:03]} Nf6 {[%emt 0:00:13]} 2. c4 {[%emt 0:00:53]} g6 {[%emt 0:
00:21]} 3. Nc3 {[%emt 0:00:15]} d5 {[%emt 0:00:04]} 4. cxd5 {[%emt 0:00:30]}
Nxd5 {[%emt 0:00:03]} 5. e4 {[%emt 0:00:03]} Nxc3 {[%emt 0:00:09]} 6. bxc3 {
[%emt 0:00:00]} Bg7 {[%emt 0:00:01]} 7. Bc4 {[%emt 0:00:08]} c5 {[%emt 0:00:21]
} 8. Ne2 {[%emt 0:00:03]} Nc6 {[%emt 0:04:15]} 9. Be3 {[%emt 0:00:13]} O-O {
[%emt 0:04:57]} 10. O-O {[%emt 0:00:20]} Bd7 {[%emt 0:02:32]} 11. Rb1 {[%emt 0:
10:41]} cxd4 {[%emt 0:07:36]} 12. cxd4 {[%emt 0:00:16]} Rc8 {[%emt 0:00:11]}
13. Bb5 {[%emt 0:07:14]} Na5 {[%emt 0:08:40]} 14. Qd3 {[%emt 0:20:23]} a6 {
[%emt 0:03:49]} 15. Bxd7 {[%emt 0:00:09]} Qxd7 {[%emt 0:00:02]} 16. Rb4 {[%emt
0:14:28]} e6 {[%emt 0:05:52]} 17. Rfb1 {[%emt 0:03:17]} Rfd8 {[%emt 0:07:53]}
18. Bg5 {[%emt 0:08:31]} f6 {[%emt 0:08:35]} 19. Bh4 {[%emt 0:00:59]} g5 {
[%emt 0:01:47]} 20. Bg3 {[%emt 0:00:21]} b5 {[%emt 0:00:05]} 21. a4 {[%emt 0:
08:21]} Nc6 {[%emt 0:06:31]} 22. axb5 {[%emt 0:00:42]} Nxb4 {[%emt 0:00:28]}
23. Rxb4 {[%emt 0:00:00]} axb5 {[%emt 0:00:00]} 24. Rxb5 {[%emt 0:00:17]} Qc6 {
[%emt 0:02:15]} 25. h4 {[%emt 0:01:52]} h6 {[%emt 0:00:55]} 26. Kh2 {[%emt 0:
05:29]} Qc4 {[%emt 0:00:17]} 27. Qxc4 {[%emt 0:01:11]} Rxc4 {[%emt 0:00:02]}
28. hxg5 {[%emt 0:00:10]} hxg5 {[%emt 0:01:18]} 29. Rb2 {[%emt 0:03:52]} Rdc8 {
[%emt 0:00:44]} 30. Rb6 {[%emt 0:01:51]} Rc2 {[%emt 0:02:14]} 31. Ng1 {[%emt 0:
00:35]} Kf7 {[%emt 0:00:37]} 32. Rb7+ {[%emt 0:01:28]} Kg6 {[%emt 0:00:24]} 33.
Nh3 {[%emt 0:00:27]} Rh8 {[%emt 0:01:40]} 34. f3 {[%emt 0:00:05]} Rd8 {[%emt 0:
00:05]} 35. Rb6 {[%emt 0:01:14]} Rxd4 {[%emt 0:00:13]} 36. Rxe6 {[%emt 0:00:16]
} Rdd2 {[%emt 0:00:10]} 37. Bf2 {[%emt 0:00:33]} Rxf2 {[%emt 0:00:05]} 38. Nxf2
{[%emt 0:00:02]} Rxf2 {[%emt 0:00:01]} 39. Kg3 {[%emt 0:00:15]} Re2 {[%emt 0:
00:18]} 40. Ra6 {[%emt 0:00:45]} Bf8 {[%emt 0:00:15]} 41. Rc6 {[%emt 0:01:10]}
Bb4 {[%emt 0:00:19]} 42. Kh2 {[%emt 0:01:53]} Bd2 {[%emt 0:00:18]} 43. Rc8 {
[%emt 0:01:50]} Bf4+ {[%emt 0:00:28]} 44. Kh3 {[%emt 0:01:01]} Re1 {[%emt 0:00:
12]} 45. g3 {[%emt 0:00:08]} Be5 {[%emt 0:00:10]} 46. Ra8 {[%emt 0:01:12]} Rg1
{[%emt 0:00:18]} 47. f4 {[%emt 0:00:16]} Bd4 {[%emt 0:01:57]} 48. fxg5 {[%emt
0:01:49]} Kxg5 {[%emt 0:00:10]} 49. Rg8+ {[%emt 0:00:19]} Kh5 {[%emt 0:00:09]}
50. Rh8+ {[%emt 0:01:11]} Kg6 {[%emt 0:00:05]} 51. Kg4 {[%emt 0:01:52]} Be5 {
[%emt 0:02:15]} 52. Rh3 {[%emt 0:00:01]} Ra1 {[%emt 0:00:48]} 53. Kf3 {[%emt 0:
01:26]} Ra3+ {[%emt 0:00:06]} 54. Kf2 {[%emt 0:00:31]} Kg5 {[%emt 0:00:09]} 55.
Kg2 {[%emt 0:01:03]} Re3 {[%emt 0:00:05]} 56. Kf2 {[%emt 0:00:12]} Rxe4 {[%emt
0:00:05]} 57. Rh8 {[%emt 0:00:19]} Ra4 {[%emt 0:00:41]} 58. Rg8+ {[%emt 0:00:
20]} Kf5 {[%emt 0:00:07]} 59. Kf3 {[%emt 0:00:26]} Ra3+ {[%emt 0:00:07]} 0-1

[Event "BM10, BM12, BM14, BM16 ir BM18 èempionat"]
[Site "Vilnius"]
[Date "2021.06.06"]
[Round "8.4"]
[White "Ravlusevic, Evelina"]
[Black "Maciulaityte, Barbora"]
[Result "0-1"]
[WhiteElo "1749"]
[BlackElo "1640"]
[PlyCount "74"]
[EventDate "2021.??.??"]
[TimeControl "90+30"]
[WhiteClock "0:01:26"]
[BlackClock "0:07:09"]

1. d4 {[%emt 0:00:04]} d5 {[%emt 0:00:40]} 2. c4 {[%emt 0:00:09]} e6 {[%emt 0:
00:08]} 3. Nf3 {[%emt 0:00:05]} a6 {[%emt 0:00:14]} 4. g3 {[%emt 0:00:37]} dxc4
{[%emt 0:00:23]} 5. Bg2 {[%emt 0:00:08]} b5 {[%emt 0:00:32]} 6. Ne5 {[%emt 0:
00:58]} c6 {[%emt 0:00:17]} 7. Nxc6 {[%emt 0:02:06]} Qb6 {[%emt 0:00:16]} 8.
Nxb8 {[%emt 0:01:06]} Rxb8 {[%emt 0:00:09]} 9. O-O {[%emt 0:00:19]} Bb7 {[%emt
0:01:20]} 10. Bxb7 {[%emt 0:07:41]} Qxb7 {[%emt 0:00:20]} 11. b3 {[%emt 0:01:
16]} cxb3 {[%emt 0:04:31]} 12. axb3 {[%emt 0:05:20]} Nf6 {[%emt 0:01:22]} 13.
Qd2 {[%emt 0:05:05]} Rc8 {[%emt 0:05:52]} 14. Qa5 {[%emt 0:02:55]} Rc6 {[%emt
0:00:19]} 15. Nd2 {[%emt 0:00:57]} Bd6 {[%emt 0:08:55]} 16. e4 {[%emt 0:01:55]}
O-O {[%emt 0:01:03]} 17. Bb2 {[%emt 0:02:18]} Rc2 {[%emt 0:10:17]} 18. Bc1 {
[%emt 0:02:54]} Ra8 {[%emt 0:09:26]} 19. Re1 {[%emt 0:12:18]} Bc7 {[%emt 0:06:
31]} 20. Qa3 {[%emt 0:04:25]} Bb6 {[%emt 0:02:16]} 21. b4 {[%emt 0:15:18]} Bxd4
{[%emt 0:05:22]} 22. Qd3 {[%emt 0:01:03]} Rxd2 {[%emt 0:01:42]} 23. Bxd2 {
[%emt 0:00:50]} Bxa1 {[%emt 0:00:30]} 24. Rxa1 {[%emt 0:00:10]} Nxe4 {[%emt 0:
02:46]} 25. Be3 {[%emt 0:02:52]} h6 {[%emt 0:02:31]} 26. Bf4 {[%emt 0:01:52]}
Nf6 {[%emt 0:03:34]} 27. Qd4 {[%emt 0:03:18]} Rc8 {[%emt 0:06:25]} 28. Bxh6 {
[%emt 0:00:50]} Qd5 {[%emt 0:04:52]} 29. Qb2 {[%emt 0:02:25]} Qf3 {[%emt 0:02:
40]} 30. Be3 {[%emt 0:02:04]} Ng4 {[%emt 0:02:21]} 31. Bc5 {[%emt 0:00:30]} Rd8
{[%emt 0:00:34]} 32. Bd4 {[%emt 0:03:47]} Rd6 {[%emt 0:03:55]} 33. h3 {[%emt 0:
01:10]} Nf6 {[%emt 0:01:43]} 34. Rc1 {[%emt 0:01:59]} Ne4 {[%emt 0:03:10]} 35.
Kh2 {[%emt 0:04:47]} e5 {[%emt 0:03:17]} 36. Be3 {[%emt 0:01:56]} Rd2 {[%emt 0:
00:38]} 37. Rc2 {[%emt 0:09:52]} Qxe3 {[%emt 0:01:15]} 0-1

[Event "BM10, BM12, BM14, BM16 ir BM18 èempionat"]
[Site "Vilnius"]
[Date "2021.06.06"]
[Round "8.5"]
[White "Perminaite, Simona"]
[Black "Staskeviciute, Darija"]
[Result "1-0"]
[WhiteElo "1384"]
[BlackElo "1564"]
[PlyCount "61"]
[EventDate "2021.??.??"]
[TimeControl "90+30"]
[WhiteClock "0:18:42"]
[BlackClock "0:09:38"]

1. e4 {[%emt 0:00:03]} c5 {[%emt 0:00:14]} 2. d3 {[%emt 0:00:07]} Nc6 {[%emt 0:
00:13]} 3. g3 {[%emt 0:00:10]} g6 {[%emt 0:00:22]} 4. Bg2 {[%emt 0:00:10]} Bg7
{[%emt 0:00:31]} 5. f4 {[%emt 0:00:24]} e6 {[%emt 0:00:27]} 6. Nf3 {[%emt 0:00:
21]} Nge7 {[%emt 0:00:31]} 7. c3 {[%emt 0:00:46]} O-O {[%emt 0:03:05]} 8. O-O {
[%emt 0:00:10]} Rb8 {[%emt 0:01:13]} 9. Be3 {[%emt 0:00:23]} d6 {[%emt 0:00:25]
} 10. Na3 {[%emt 0:04:11]} b5 {[%emt 0:01:59]} 11. Nc2 {[%emt 0:07:48]} b4 {
[%emt 0:03:06]} 12. d4 {[%emt 0:07:59]} d5 {[%emt 0:01:02]} 13. e5 {[%emt 0:01:
40]} c4 {[%emt 0:00:22]} 14. g4 {[%emt 0:03:09]} Qc7 {[%emt 0:00:53]} 15. Qe1 {
[%emt 0:02:29]} Bd7 {[%emt 0:00:40]} 16. h4 {[%emt 0:06:34]} a5 {[%emt 0:16:16]
} 17. Bh3 {[%emt 0:08:10]} Rb7 {[%emt 0:02:45]} 18. Rf2 {[%emt 0:07:13]} Rfb8 {
[%emt 0:06:39]} 19. Rg2 {[%emt 0:02:18]} h6 {[%emt 0:08:50]} 20. h5 {[%emt 0:
04:31]} Kh7 {[%emt 0:00:27]} 21. Qh4 {[%emt 0:01:57]} Rf8 {[%emt 0:05:21]} 22.
g5 {[%emt 0:01:15]} Nf5 {[%emt 0:03:32]} 23. Bxf5 {[%emt 0:00:20]} exf5 {[%emt
0:00:16]} 24. Rh2 {[%emt 0:03:14]} Qd8 {[%emt 0:29:15]} 25. Qh3 {[%emt 0:04:02]
} Rh8 {[%emt 0:00:42]} 26. gxh6 {[%emt 0:13:39]} gxh5 {[%emt 0:01:19]} 27. hxg7
{[%emt 0:00:47]} Kxg7 {[%emt 0:00:08]} 28. Qg3+ {[%emt 0:02:00]} Kf8 {[%emt 0:
00:04]} 29. Rg2 {[%emt 0:00:24]} Qc8 {[%emt 0:05:06]} 30. Qg7+ {[%emt 0:00:25]}
Ke7 {[%emt 0:00:16]} 31. Qf6+ {[%emt 0:01:02]} 1-0

[Event "BM10, BM12, BM14, BM16 ir BM18 èempionat"]
[Site "Vilnius"]
[Date "2021.06.06"]
[Round "8.6"]
[White "Povilaitis, Tomas"]
[Black "Greicius, Pijus"]
[Result "1/2-1/2"]
[WhiteElo "1903"]
[BlackElo "2004"]
[PlyCount "96"]
[EventDate "2021.??.??"]
[TimeControl "90+30"]
[WhiteClock "0:02:49"]
[BlackClock "0:21:29"]

1. d4 {[%emt 0:00:02]} Nf6 {[%emt 0:00:28]} 2. Bg5 {[%emt 0:00:09]} d5 {[%emt
0:00:17]} 3. Nd2 {[%emt 0:00:20]} Bf5 {[%emt 0:02:25]} 4. e3 {[%emt 0:01:26]}
e6 {[%emt 0:00:49]} 5. Bd3 {[%emt 0:07:06]} Bg6 {[%emt 0:03:36]} 6. Bxg6 {
[%emt 0:00:49]} hxg6 {[%emt 0:00:08]} 7. c3 {[%emt 0:00:06]} c6 {[%emt 0:00:26]
} 8. f4 {[%emt 0:00:46]} Qb6 {[%emt 0:00:29]} 9. Bxf6 {[%emt 0:01:13]} gxf6 {
[%emt 0:00:14]} 10. Qc2 {[%emt 0:15:23]} Nd7 {[%emt 0:02:50]} 11. O-O-O {[%emt
0:02:17]} O-O-O {[%emt 0:00:19]} 12. Ngf3 {[%emt 0:04:13]} Kb8 {[%emt 0:06:53]}
13. e4 {[%emt 0:02:53]} c5 {[%emt 0:12:37]} 14. Kb1 {[%emt 0:05:47]} cxd4 {
[%emt 0:03:16]} 15. cxd4 {[%emt 0:06:06]} Bb4 {[%emt 0:10:36]} 16. e5 {[%emt 0:
02:36]} Rc8 {[%emt 0:03:06]} 17. Qa4 {[%emt 0:05:02]} Rc7 {[%emt 0:01:12]} 18.
Rc1 {[%emt 0:03:34]} Rhc8 {[%emt 0:04:10]} 19. Rxc7 {[%emt 0:01:13]} Rxc7 {
[%emt 0:00:06]} 20. Rc1 {[%emt 0:00:04]} Rxc1+ {[%emt 0:00:28]} 21. Kxc1 {
[%emt 0:00:01]} Bxd2+ {[%emt 0:00:24]} 22. Nxd2 {[%emt 0:00:24]} Qc7+ {[%emt 0:
00:13]} 23. Qc2 {[%emt 0:02:48]} fxe5 {[%emt 0:01:16]} 24. Qxc7+ {[%emt 0:01:
56]} Kxc7 {[%emt 0:00:02]} 25. fxe5 {[%emt 0:00:30]} f6 {[%emt 0:00:54]} 26.
Nf3 {[%emt 0:04:05]} fxe5 {[%emt 0:01:24]} 27. dxe5 {[%emt 0:00:33]} Kd8 {
[%emt 0:09:40]} 28. Kd2 {[%emt 0:01:30]} Ke7 {[%emt 0:00:07]} 29. Ke3 {[%emt 0:
00:10]} Nb8 {[%emt 0:03:00]} 30. h4 {[%emt 0:01:35]} Nc6 {[%emt 0:01:36]} 31.
g4 {[%emt 0:00:27]} Nd8 {[%emt 0:03:07]} 32. Kf4 {[%emt 0:01:45]} Kf7 {[%emt 0:
01:21]} 33. b4 {[%emt 0:03:00]} a6 {[%emt 0:02:00]} 34. a4 {[%emt 0:02:49]} b6
{[%emt 0:04:36]} 35. Nd4 {[%emt 0:03:02]} Kg7 {[%emt 0:01:47]} 36. b5 {[%emt 0:
03:28]} axb5 {[%emt 0:01:02]} 37. axb5 {[%emt 0:00:08]} Kf7 {[%emt 0:00:41]}
38. Kg5 {[%emt 0:02:20]} Kg7 {[%emt 0:00:47]} 39. Nc6 {[%emt 0:00:16]} Nb7 {
[%emt 0:00:38]} 40. h5 {[%emt 0:09:41]} gxh5 {[%emt 0:00:27]} 41. gxh5 {[%emt
0:00:07]} Nc5 {[%emt 0:01:23]} 42. h6+ {[%emt 0:00:35]} Kh7 {[%emt 0:00:29]}
43. Nd4 {[%emt 0:00:28]} Ne4+ {[%emt 0:00:47]} 44. Kh5 {[%emt 0:00:02]} Nc5 {
[%emt 0:00:16]} 45. Nf3 {[%emt 0:03:03]} Ne4 {[%emt 0:00:07]} 46. Nd4 {[%emt 0:
01:47]} Nc5 {[%emt 0:00:11]} 47. Kg5 {[%emt 0:03:57]} Ne4+ {[%emt 0:00:09]} 48.
Kh5 {[%emt 0:00:14]} Nc5 {[%emt 0:00:10]} 1/2-1/2

[Event "BM10, BM12, BM14, BM16 ir BM18 èempionat"]
[Site "Vilnius"]
[Date "2021.06.06"]
[Round "8.7"]
[White "Leclere, Daniel"]
[Black "Scekaciov, Rostislav"]
[Result "1/2-1/2"]
[WhiteElo "1800"]
[BlackElo "1515"]
[PlyCount "120"]
[EventDate "2021.??.??"]
[TimeControl "90+30"]
[WhiteClock "0:32:05"]
[BlackClock "0:06:24"]

1. d4 {[%emt 0:00:10]} Nf6 {[%emt 0:00:10]} 2. c4 {[%emt 0:00:05]} e6 {[%emt 0:
00:56]} 3. g3 {[%emt 0:00:05]} d5 {[%emt 0:01:00]} 4. Nf3 {[%emt 0:00:06]} c6 {
[%emt 0:00:33]} 5. Qc2 {[%emt 0:00:56]} Be7 {[%emt 0:00:22]} 6. Bg2 {[%emt 0:
00:09]} O-O {[%emt 0:00:07]} 7. Nbd2 {[%emt 0:00:26]} Nbd7 {[%emt 0:00:38]} 8.
O-O {[%emt 0:00:24]} a6 {[%emt 0:01:16]} 9. b3 {[%emt 0:00:21]} h6 {[%emt 0:02:
18]} 10. e4 {[%emt 0:00:38]} dxe4 {[%emt 0:00:16]} 11. Nxe4 {[%emt 0:00:13]}
Nxe4 {[%emt 0:00:24]} 12. Qxe4 {[%emt 0:00:04]} Nf6 {[%emt 0:00:09]} 13. Qe2 {
[%emt 0:00:28]} Bd7 {[%emt 0:15:07]} 14. Bb2 {[%emt 0:00:19]} Rc8 {[%emt 0:00:
32]} 15. Rfd1 {[%emt 0:00:19]} Qb6 {[%emt 0:03:29]} 16. Ne5 {[%emt 0:05:26]}
Rfd8 {[%emt 0:01:13]} 17. Nxd7 {[%emt 0:00:19]} Rxd7 {[%emt 0:00:42]} 18. d5 {
[%emt 0:02:59]} cxd5 {[%emt 0:01:27]} 19. cxd5 {[%emt 0:00:15]} Rcd8 {[%emt 0:
17:31]} 20. dxe6 {[%emt 0:04:16]} Qxe6 {[%emt 0:03:25]} 21. Qxe6 {[%emt 0:00:
34]} Rxd1+ {[%emt 0:00:59]} 22. Qe1 {[%emt 0:00:02]} Rxe1+ {[%emt 0:00:03]} 23.
Rxe1 {[%emt 0:00:11]} Bc5 {[%emt 0:01:11]} 24. Bc3 {[%emt 0:08:24]} Ng4 {[%emt
0:05:56]} 25. Rf1 {[%emt 0:01:17]} Rd3 {[%emt 0:01:19]} 26. Be1 {[%emt 0:00:20]
} b6 {[%emt 0:12:50]} 27. Bb7 {[%emt 0:04:42]} a5 {[%emt 0:08:01]} 28. Kg2 {
[%emt 0:01:37]} Ne5 {[%emt 0:00:18]} 29. Ba6 {[%emt 0:10:12]} Rd1 {[%emt 0:00:
45]} 30. Bc3 {[%emt 0:01:41]} Rxf1 {[%emt 0:00:23]} 31. Kxf1 {[%emt 0:01:26]}
Nc6 {[%emt 0:02:25]} 32. a4 {[%emt 0:02:30]} Kf8 {[%emt 0:01:34]} 33. f4 {
[%emt 0:01:51]} Nd4 {[%emt 0:02:15]} 34. Bc4 {[%emt 0:00:27]} f6 {[%emt 0:00:
45]} 35. Kg2 {[%emt 0:02:12]} Ke7 {[%emt 0:00:59]} 36. g4 {[%emt 0:01:06]} g5 {
[%emt 0:02:03]} 37. fxg5 {[%emt 0:01:17]} hxg5 {[%emt 0:00:49]} 38. Be1 {[%emt
0:02:22]} Nc2 {[%emt 0:00:56]} 39. Bd2 {[%emt 0:01:22]} Ne3+ {[%emt 0:00:27]}
40. Kf3 {[%emt 0:03:46]} Nxc4 {[%emt 0:00:28]} 41. bxc4 {[%emt 0:00:05]} Kd6 {
[%emt 0:00:45]} 42. Bc3 {[%emt 0:00:15]} Ke6 {[%emt 0:00:21]} 43. Ke4 {[%emt 0:
00:12]} Bd6 {[%emt 0:02:10]} 44. Bd4 {[%emt 0:08:27]} Bc7 {[%emt 0:00:52]} 45.
h3 {[%emt 0:01:00]} Bd8 {[%emt 0:00:27]} 46. c5 {[%emt 0:01:03]} bxc5 {[%emt 0:
00:40]} 47. Bxc5 {[%emt 0:00:06]} Bc7 {[%emt 0:00:16]} 48. Bf2 {[%emt 0:00:56]}
Bd8 {[%emt 0:00:41]} 49. Ba7 {[%emt 0:01:06]} Bc7 {[%emt 0:00:37]} 50. Bf2 {
[%emt 0:04:07]} Bd8 {[%emt 0:00:31]} 51. h4 {[%emt 0:00:50]} gxh4 {[%emt 0:00:
09]} 52. Bxh4 {[%emt 0:00:05]} Bb6 {[%emt 0:00:34]} 53. Bg3 {[%emt 0:00:16]}
Bd8 {[%emt 0:00:14]} 54. Be1 {[%emt 0:01:15]} Bb6 {[%emt 0:00:37]} 55. Bd2 {
[%emt 0:00:13]} Bc7 {[%emt 0:01:17]} 56. Kd4 {[%emt 0:00:22]} Bd8 {[%emt 0:01:
00]} 57. Kc4 {[%emt 0:00:49]} f5 {[%emt 0:05:43]} 58. gxf5+ {[%emt 0:00:27]}
Kxf5 {[%emt 0:00:07]} 59. Kb5 {[%emt 0:00:02]} Ke6 {[%emt 0:00:12]} 60. Kc6 {
[%emt 0:01:11]} Ke5 {[%emt 0:01:10]} 1/2-1/2

[Event "BM10, BM12, BM14, BM16 ir BM18 èempionat"]
[Site "Vilnius"]
[Date "2021.06.06"]
[Round "8.8"]
[White "Norkeliunas, Matas"]
[Black "Posaskov, Nikita"]
[Result "1/2-1/2"]
[WhiteElo "1533"]
[BlackElo "1798"]
[PlyCount "69"]
[EventDate "2021.??.??"]
[TimeControl "90+30"]
[WhiteClock "0:13:53"]
[BlackClock "0:26:04"]

1. Nf3 {[%emt 0:00:24]} Nf6 {[%emt 0:00:06]} 2. d4 {[%emt 0:00:30]} g6 {[%emt
0:00:05]} 3. c4 {[%emt 0:01:40]} Bg7 {[%emt 0:00:06]} 4. Nc3 {[%emt 0:01:47]}
O-O {[%emt 0:00:08]} 5. e4 {[%emt 0:02:54]} d6 {[%emt 0:00:13]} 6. Be2 {[%emt
0:02:21]} e5 {[%emt 0:00:15]} 7. dxe5 {[%emt 0:01:31]} dxe5 {[%emt 0:00:15]} 8.
Qxd8 {[%emt 0:00:46]} Rxd8 {[%emt 0:00:06]} 9. Bg5 {[%emt 0:00:40]} Re8 {[%emt
0:01:04]} 10. O-O {[%emt 0:03:39]} c6 {[%emt 0:00:10]} 11. Rad1 {[%emt 0:05:23]
} Na6 {[%emt 0:24:43]} 12. Nxe5 {[%emt 0:23:44]} Nxe4 {[%emt 0:19:03]} 13. Nxe4
{[%emt 0:00:32]} Bxe5 {[%emt 0:00:03]} 14. Nf6+ {[%emt 0:01:57]} Bxf6 {[%emt 0:
00:05]} 15. Bxf6 {[%emt 0:00:04]} Bf5 {[%emt 0:00:19]} 16. Rfe1 {[%emt 0:07:10]
} Nb4 {[%emt 0:08:52]} 17. Bf1 {[%emt 0:05:42]} Re6 {[%emt 0:10:27]} 18. Rxe6 {
[%emt 0:02:48]} Bxe6 {[%emt 0:00:04]} 19. a3 {[%emt 0:00:53]} Na6 {[%emt 0:00:
23]} 20. b4 {[%emt 0:01:16]} Nc7 {[%emt 0:00:07]} 21. Be2 {[%emt 0:09:03]} Ne8
{[%emt 0:03:15]} 22. Rd8 {[%emt 0:06:53]} Rxd8 {[%emt 0:00:02]} 23. Bxd8 {
[%emt 0:00:05]} Nd6 {[%emt 0:07:21]} 24. c5 {[%emt 0:00:56]} Nf5 {[%emt 0:00:
20]} 25. Bf6 {[%emt 0:00:47]} Kf8 {[%emt 0:01:13]} 26. a4 {[%emt 0:06:22]} Bb3
{[%emt 0:00:18]} 27. a5 {[%emt 0:00:23]} a6 {[%emt 0:00:16]} 28. Bg4 {[%emt 0:
00:36]} Be6 {[%emt 0:01:10]} 29. Bxf5 {[%emt 0:00:33]} Bxf5 {[%emt 0:00:02]}
30. f4 {[%emt 0:00:50]} Ke8 {[%emt 0:00:19]} 31. Kf2 {[%emt 0:00:38]} Kd7 {
[%emt 0:00:09]} 32. Ke3 {[%emt 0:00:22]} Ke6 {[%emt 0:00:07]} 33. Bc3 {[%emt 0:
00:17]} Kd5 {[%emt 0:00:04]} 34. g3 {[%emt 0:00:26]} Kc4 {[%emt 0:00:07]} 35.
Be1 {[%emt 0:00:23]} 1/2-1/2